bitfinex-derivatives/quotes_SOLF0:USTF0_20260204
["timestamp","ask_amount","ask_price","bid_price","bid_amount"]
[1770244664992,0.04377945,92.116,92.047,3.94072739]
[1770244665199,0.04377945,92.116,92.025,3.94072739]
[1770244665398,0.04377945,92.109,92.025,3.94072739]
[1770244666100,3.84187267,92.069,91.94,8.22882285]
[1770244666500,9.7989,92.041,91.966,9.8067]
[1770244666695,9.7989,92.041,91.92,8.22882285]
[1770244667194,13.64207267,92.029,91.92,8.22882285]
[1770244667400,13.64207267,92.029,91.9,8.22882285]
[1770244667598,3.84187267,92.028,91.9,8.22882285]
[1770244667801,3.84187267,92.009,91.88,8.22882285]
[1770244668001,3.84187267,92.009,91.881,3.65631255]
[1770244668299,3.84187267,92.009,91.93,3.65631255]
[1770244668803,9.8024,92.008,91.93,13.46691255]
[1770244669098,9.8024,92.008,91.9,8.22882285]
[1770244669099,3.84187267,92.009,91.931,3.65631255]
[1770244669497,3.84187267,92.009,91.842,152.7563]
[1770244669498,8.22882285,92.0,91.906,3.65631255]
[1770244669697,3.84187267,91.999,91.906,3.65631255]
[1770244669898,3.84187267,91.981,91.906,3.65631255]
[1770244670602,3.84187267,92.006,91.908,3.65631255]
[1770244670797,152.3451,92.091,91.911,3.65631255]
[1770244670798,3.84187267,92.039,91.911,3.65631255]
[1770244671002,3.84187267,92.039,91.888,152.6792]
[1770244671003,3.84187267,92.039,91.968,9.8065]
[1770244671198,8.22882285,92.08,91.969,3.65631255]
[1770244671398,3.84187267,92.079,91.969,3.65631255]
[1770244671791,3.84187267,92.069,91.983,9.8049]
[1770244671997,3.84187267,92.069,91.969,3.65631255]
[1770244672298,3.84187267,92.05,91.969,3.65631255]
[1770244673604,8.22882285,92.06,91.969,3.65631255]
[1770244673605,3.84187267,92.042,91.969,3.65631255]
[1770244674104,3.73730696,92.038,91.957,9.8077]
[1770244674902,9.7999,92.032,91.957,9.8077]
[1770244675101,3.73730696,92.031,91.947,3.89812831]
[1770244675602,9.8018,92.014,91.947,3.89812831]
[1770244675802,3.73730696,92.014,91.947,3.89812831]
[1770244676308,3.73730696,92.0,91.921,3.89812831]
[1770244676496,3.73730696,91.999,91.921,3.89812831]
[1770244677005,3.73730696,91.999,91.898,3.89812831]
[1770244677201,3.73730696,91.979,91.898,3.89812831]
[1770244677502,8.22882285,91.94,91.822,3.89812831]
[1770244677701,8.22882285,91.93,91.822,3.89812831]
[1770244677900,3.73730696,91.929,91.822,3.89812831]
[1770244678301,3.73730696,91.909,91.822,3.89812831]
[1770244678799,3.73730696,91.909,91.728,152.9467]
[1770244678800,152.652,91.906,91.747,3.89812831]
[1770244679005,3.73730696,91.879,91.747,3.89812831]
[1770244679202,3.73730696,91.879,91.777,3.89812831]
[1770244679703,3.73730696,91.879,91.809,3.88935763]
[1770244680004,3.73730696,91.879,91.771,1.8947953]
[1770244680005,3.73730696,91.879,91.784,3.88935763]
[1770244680198,3.73730696,91.879,91.786,3.88935763]
[1770244680600,3.58458518,91.906,91.786,3.88935763]
[1770244680808,3.58458518,91.93,91.822,3.88935763]
[1770244681003,3.58458518,91.969,91.841,3.88935763]
[1770244681206,13.39118518,91.968,91.861,3.88935763]
[1770244681401,3.58458518,91.967,91.861,3.88935763]
[1770244682008,3.58458518,91.967,91.866,3.88935763]
[1770244682305,3.58458518,91.948,91.84,13.70955763]
[1770244682701,3.58458518,91.948,91.814,3.88935763]
[1770244682905,3.58458518,91.909,91.814,3.88935763]
[1770244683407,3.58458518,91.909,91.788,3.88935763]
[1770244683408,9.8159,91.882,91.788,3.88935763]
[1770244683606,3.58458518,91.881,91.788,3.88935763]
[1770244684007,9.8165,91.876,91.788,3.88935763]
[1770244684206,3.58458518,91.875,91.788,3.88935763]
[1770244684611,3.58458518,91.901,91.804,3.88935763]
[1770244684911,3.58458518,91.939,91.804,3.88935763]
[1770244685104,21.24535842,91.97,91.789,152.8447]
[1770244685105,3.58458518,91.935,91.839,3.88935763]
[1770244685514,3.58458518,91.935,91.8,3.88935763]
[1770244685709,3.58458518,91.935,91.833,3.88935763]
[1770244686009,3.58458518,91.963,91.835,3.88935763]
[1770244686210,3.58458518,91.963,91.867,3.88935763]
[1770244686909,3.58458518,91.963,91.881,9.8159]
[1770244687311,13.38888518,91.99,91.886,3.88935763]
[1770244687615,3.58458518,91.99,91.886,3.88935763]
[1770244687913,9.8018,92.014,91.925,9.8112]
[1770244688506,21.24535842,92.06,91.925,9.8112]
[1770244688507,3.58458518,92.011,91.925,9.8112]
[1770244688703,3.58458518,92.011,91.919,3.88935763]
[1770244689310,13.38848518,91.994,91.919,3.88935763]
[1770244689616,3.58458518,91.994,91.896,9.8142]
[1770244689807,3.58458518,91.994,91.843,19.6398]
[1770244689808,3.58458518,91.971,91.867,3.88935763]
[1770244690507,3.58458518,91.954,91.867,3.88935763]
[1770244690707,3.58458518,91.979,91.885,3.88935763]
[1770244691709,13.39008518,91.979,91.898,3.88935763]
[1770244692209,3.58458518,91.978,91.898,3.88935763]
[1770244692416,9.8073,91.962,91.898,3.88935763]
[1770244693017,9.8073,91.962,91.883,9.8157]
[1770244695510,3.58458518,91.975,91.899,9.8139]
[1770244696813,9.8063,91.972,91.899,9.8139]
[1770244697315,3.58458518,91.971,91.899,9.8139]
[1770244697610,9.8064,91.97,91.899,9.8139]
[1770244699014,3.58458518,91.971,91.872,3.88935763]
[1770244699015,3.58458518,91.971,91.908,9.8129]
[1770244699617,3.58458518,91.971,91.917,9.812]
[1770244699810,3.58458518,92.019,91.894,3.88935763]
[1770244700719,9.8032,92.001,91.938,9.8097]
[1770244700912,3.58458518,92.019,91.938,9.8097]
[1770244701217,3.58458518,92.019,91.917,3.88935763]
[1770244701618,9.803,92.002,91.917,3.88935763]
[1770244701815,13.38758518,92.002,91.917,3.88935763]
[1770244702317,3.58458518,91.994,91.917,3.88935763]
[1770244702713,3.58458518,91.994,91.871,3.88935763]
[1770244703419,9.8052,91.982,91.922,9.8115]
[1770244703810,3.58458518,91.994,91.937,9.8099]
[1770244704315,3.58458518,91.994,91.925,3.88642438]
[1770244705710,3.58458518,91.994,91.945,9.809]
[1770244706712,3.75305728,92.02,91.958,9.8077]
[1770244707114,3.75305728,92.016,91.958,9.8077]
[1770244707315,9.97939915,92.078,91.894,152.6701]
[1770244707316,3.75305728,92.057,91.951,3.88642438]
[1770244708409,3.75305728,92.057,91.914,152.6371]
[1770244708410,3.75305728,92.106,91.98,7.38965295]
[1770244708615,3.75305728,92.106,91.981,3.88642438]
[1770244709013,3.75305728,92.105,92.009,3.88642438]
[1770244709623,3.75305728,92.079,91.951,3.88642438]
[1770244710723,3.75305728,92.057,91.971,3.88642438]
[1770244711812,3.75305728,92.057,91.979,13.69182438]
[1770244712615,3.75305728,92.057,91.991,9.8041]
[1770244714814,3.75305728,92.057,91.979,3.88642438]
[1770244714815,3.75305728,92.057,92.002,9.803]
[1770244715415,3.75305728,92.057,92.012,9.8018]
[1770244715620,9.7943,92.085,92.013,3.88642438]
[1770244715929,3.75305728,92.095,92.013,3.88642438]
[1770244716329,13.54635728,92.093,92.018,9.8013]
[1770244716532,3.75305728,92.092,92.018,9.8013]
[1770244717523,3.75305728,92.092,92.013,3.88642438]
[1770244717524,9.7942,92.085,92.029,9.8001]
[1770244717725,3.75305728,92.092,92.029,9.8001]
[1770244718125,9.7937,92.09,92.029,9.8001]
[1770244718533,9.789,92.134,92.034,3.88642438]
[1770244718833,3.75305728,92.141,92.036,3.88642438]
[1770244719132,3.75305728,92.141,92.096,9.7929]
[1770244720022,9.7867,92.156,92.096,9.7929]
[1770244720926,3.75305728,92.175,92.066,3.88642438]
[1770244720927,9.7856,92.166,92.066,3.88642438]
[1770244721132,9.7856,92.166,92.071,3.88642438]
[1770244721629,3.75305728,92.175,92.071,3.88642438]
[1770244722133,3.75305728,92.175,92.11,9.7914]
[1770244723129,7.38965295,92.19,92.11,9.7914]
[1770244723130,3.75305728,92.173,92.11,9.7914]
[1770244724134,9.7853,92.169,92.11,9.7914]
[1770244724331,7.38965295,92.14,92.039,6.61089902]
[1770244724636,9.7924,92.102,92.039,6.61089902]
[1770244724825,7.38965295,92.14,92.039,6.61089902]
[1770244725432,9.7931,92.095,92.039,6.61089902]
[1770244725830,9.7931,92.095,92.025,9.8005]
[1770244726135,9.7946,92.081,92.014,16.39357948]
[1770244726834,9.7946,92.081,92.015,6.59187948]
[1770244727129,9.7934,92.092,92.022,9.8008]
[1770244727834,9.7917,92.108,92.029,6.7560946]
[1770244728531,9.7917,92.108,92.04,9.7989]
[1770244728724,9.7917,92.108,91.978,152.5304]
[1770244728725,7.38965295,92.16,92.041,6.7560946]
[1770244729228,7.38965295,92.16,92.058,9.7969]
[1770244729433,9.7893,92.131,92.058,9.7969]
[1770244731334,9.7893,92.131,92.058,16.57270112]
[1770244731537,9.788,92.143,92.066,6.77580112]
[1770244731933,9.788,92.143,92.069,9.7958]
[1770244732130,9.7892,92.132,92.07,6.78053159]
[1770244733134,9.788,92.143,92.071,9.7955]
[1770244734138,9.7868,92.154,92.081,9.7945]
[1770244734441,9.7868,92.154,92.082,6.78855774]
[1770244734628,9.7855,92.167,92.082,6.78855774]
[1770244734829,9.7855,92.167,92.087,6.78855774]
[1770244735336,9.7855,92.167,92.05,7.38965295]
[1770244735337,9.7855,92.167,92.098,6.78855774]
[1770244735536,9.7843,92.178,92.098,6.78855774]
[1770244736038,9.7857,92.165,92.102,9.7923]
[1770244736236,7.38965295,92.2,92.102,9.7923]
[1770244736441,7.38965295,92.2,92.103,6.80252521]
[1770244737341,9.7828,92.192,92.112,9.7912]
[1770244737546,9.7828,92.192,92.103,6.80252521]
[1770244738041,9.7814,92.206,92.135,6.79775524]
[1770244738540,9.7814,92.206,92.136,9.7886]
[1770244738735,9.7814,92.206,92.136,16.58635524]
[1770244738941,152.0157,92.291,92.136,16.58635524]
[1770244738942,152.03,92.282,92.136,6.79775524]
[1770244739138,7.38965295,92.25,92.136,6.79775524]
[1770244739744,7.38965295,92.27,92.136,6.79775524]
[1770244739942,9.27739726,92.27,92.136,6.79775524]
[1770244740137,9.27739726,92.27,92.141,6.8216689]
[1770244740338,7.38965295,92.25,92.166,6.8216689]
[1770244740535,7.38965295,92.25,92.143,6.8216689]
[1770244740845,7.38965295,92.25,92.157,9.7864]
[1770244740846,9.7807,92.212,92.157,9.7864]
[1770244741250,9.7797,92.222,92.157,9.7864]
[1770244742146,9.7797,92.222,92.166,9.7855]
[1770244742342,7.38965295,92.25,92.143,6.8216689]
[1770244743246,9.7795,92.223,92.161,9.786]
[1770244743844,9.7809,92.21,92.152,9.787]
[1770244744248,9.7809,92.21,92.143,6.8216689]
[1770244744249,7.38965295,92.23,92.143,6.8216689]
[1770244744651,9.7819,92.201,92.122,6.85671136]
[1770244744848,7.38965295,92.23,92.122,6.85671136]
[1770244745053,7.38965295,92.21,92.122,6.85671136]
[1770244745355,7.38965295,92.21,92.124,9.79]
[1770244745853,1.06833686,92.129,92.049,6.311e-05]
[1770244746249,1.06833686,92.129,92.01,7.38965295]
[1770244746250,1.06833686,92.117,92.01,7.38965295]
[1770244746445,1.06833686,92.117,91.99,7.38965295]
[1770244746852,9.794,92.087,92.025,9.8005]
[1770244747252,1.06833686,92.117,92.01,7.38965295]
[1770244747453,9.791,92.115,92.044,9.7985]
[1770244747654,1.06833686,92.149,92.051,3.89940893]
[1770244747852,1.36696219,92.189,92.051,3.89940893]
[1770244748053,1.36696219,92.189,92.071,3.89940893]
[1770244748253,1.36696219,92.162,92.083,3.89940893]
[1770244748553,1.36696219,92.129,92.031,3.89940893]
[1770244748755,152.2434,92.153,92.031,3.89940893]
[1770244748756,9.7944,92.084,92.031,3.89940893]
[1770244748950,1.36696219,92.108,92.014,9.8017]
[1770244749357,1.36696219,92.136,92.031,3.89940893]
[1770244749549,1.36696219,92.169,92.031,3.89940893]
[1770244749745,1.36696219,92.169,92.073,3.89940893]
[1770244749746,9.7873,92.15,92.073,3.89940893]
[1770244750346,9.7873,92.15,92.078,3.89940893]
[1770244750552,9.7861,92.161,92.078,3.89940893]
[1770244750948,1.34854371,92.209,92.095,3.89940893]
[1770244751151,1.34854371,92.209,92.111,3.89940893]
[1770244751652,1.34854371,92.209,92.138,9.7885]
[1770244751850,1.34854371,92.209,92.139,3.89940893]
[1770244752047,9.7809,92.21,92.139,3.89940893]
[1770244752247,9.7822,92.198,92.139,3.89940893]
[1770244752446,1.43959943,92.21,92.139,3.89940893]
[1770244752746,1.43959943,92.21,92.116,3.89940893]
[1770244752954,9.7836,92.185,92.116,3.89940893]
[1770244753750,9.7836,92.185,92.119,3.89940893]
[1770244753948,9.71298922,92.21,92.119,3.89940893]
[1770244753949,9.7824,92.196,92.119,3.89940893]
[1770244754255,1.43959943,92.21,92.122,9.7902]
[1770244755654,1.43959943,92.21,92.122,13.68960893]
[1770244755856,9.7835,92.186,92.123,3.89940893]
[1770244756448,9.7835,92.186,92.128,9.7896]
[1770244756652,9.7835,92.186,92.129,3.89940893]
[1770244757360,9.7822,92.198,92.13,9.7893]
[1770244757658,9.7822,92.198,92.129,3.89940893]
[1770244759555,9.7831,92.189,92.129,3.89940893]
[1770244761858,9.7831,92.189,92.132,9.7891]
[1770244766463,9.7817,92.203,92.145,9.7877]
[1770244767067,9.7826,92.195,92.136,9.7887]
[1770244767264,1.42666724,92.194,92.091,3.94387412]
[1770244767763,1.42232219,92.189,92.091,3.94387412]
[1770244768768,1.42232219,92.189,92.108,9.7917]
[1770244768769,9.7856,92.166,92.108,9.7917]
[1770244770665,1.3774559,92.169,92.091,3.94387412]
[1770244771061,1.3774559,92.149,92.031,3.94387412]
[1770244771266,9.7903,92.122,92.06,9.7968]
[1770244771469,1.3774559,92.129,92.033,3.94387412]
[1770244771665,1.3774559,92.109,92.033,3.94387412]
[1770244772869,1.3853699,92.088,92.011,3.94387412]
[1770244774265,9.7952,92.076,92.013,9.8018]
[1770244774469,9.7952,92.076,91.952,152.5743]
[1770244774470,8.27338979,92.03,91.956,4.526e-05]
[1770244774677,8.27338979,92.09,91.956,4.526e-05]
[1770244774870,8.27338979,92.09,91.94,8.27338979]
[1770244775373,9.7968,92.061,91.96,8.27338979]
[1770244775674,8.27338979,92.11,91.96,8.27338979]
[1770244775875,9.7937,92.09,91.98,8.27338979]
[1770244776172,8.27338979,92.13,91.98,8.27338979]
[1770244776373,9.7907,92.118,92.037,4.12762668]
[1770244776573,30.01338979,92.17,92.037,4.12762668]
[1770244776772,8.27338979,92.19,92.041,4.12762668]
[1770244776973,8.27338979,92.19,92.061,4.12762668]
[1770244777772,9.7848,92.173,92.094,9.7931]
[1770244777966,9.7848,92.173,92.094,13.91564701]
[1770244778579,9.7836,92.185,92.1,4.12254701]
[1770244779776,9.7836,92.185,92.102,9.7923]
[1770244780876,9.7836,92.185,92.102,13.92036061]
[1770244781172,9.7836,92.185,92.108,4.12806061]
[1770244782376,8.27338979,92.23,92.11,4.13877503]
[1770244782881,9.7797,92.221,92.132,4.13877503]
[1770244783569,9.7797,92.221,92.141,4.13877503]
[1770244784174,9.7784,92.234,92.148,4.13028851]
[1770244785480,9.7784,92.234,92.152,4.13028851]
[1770244786679,9.7784,92.234,92.156,9.7866]
[1770244786984,9.7784,92.234,92.157,4.13460644]
[1770244788184,9.7784,92.234,92.16,9.7862]
[1770244788384,9.7784,92.234,92.16,13.86840788]
[1770244788775,9.7784,92.234,92.161,4.08220788]
[1770244790288,9.7769,92.248,92.177,4.07508741]
[1770244791687,9.7769,92.248,92.179,9.7841]
[1770244792391,9.7769,92.248,92.183,9.7837]
[1770244792985,0.14895781,92.252,92.189,9.783]
[1770244793192,0.14895781,92.252,92.189,13.72687412]
[1770244795887,0.14895781,92.252,92.198,9.7821]
[1770244796289,9.7745,92.27,92.199,3.93182216]
[1770244796590,9.7745,92.27,92.202,3.93182216]
[1770244797692,9.7745,92.27,92.205,9.7813]
[1770244798595,9.7745,92.27,92.16,8.27338979]
[1770244798596,9.7745,92.27,92.208,3.93182216]
[1770244799395,0.08073305,92.291,92.223,3.92553113]
[1770244800293,0.08073305,92.329,92.223,3.92553113]
[1770244801789,0.05415323,92.323,92.246,3.93882104]
[1770244803804,9.7703,92.31,92.246,3.93882104]
[1770244804202,9.7688,92.324,92.261,3.95817598]
[1770244804395,8.27338979,92.37,92.261,3.95817598]
[1770244804702,10.15908318,92.37,92.261,3.95817598]
[1770244804901,9.7671,92.341,92.276,9.7739]
[1770244805100,10.15908318,92.37,92.261,3.95817598]
[1770244805809,0.02571673,92.369,92.261,3.95817598]
[1770244806007,0.02571673,92.366,92.302,9.7711]
[1770244807110,0.02571673,92.366,92.312,9.77]
[1770244807511,0.02571673,92.366,92.282,3.95303929]
[1770244807908,0.02571673,92.366,92.214,152.1395]
[1770244807909,0.02571673,92.366,92.221,3.99662407]
[1770244808108,9.7673,92.338,92.221,3.99662407]
[1770244808304,8.27338979,92.35,92.221,3.99662407]
[1770244809011,9.7674,92.338,92.269,9.7745]
[1770244809205,8.27338979,92.35,92.26,3.99662407]
[1770244809910,9.7671,92.34,92.263,9.7752]
[1770244810114,9.7671,92.34,92.264,4.01002119]
[1770244811015,9.7671,92.34,92.266,9.7749]
[1770244811810,9.7671,92.34,92.276,9.7739]
[1770244813619,8.27338979,92.37,92.266,4.01309676]
[1770244814111,8.27338979,92.37,92.285,4.01369574]
[1770244814112,9.7644,92.366,92.285,4.01369574]
[1770244814910,9.7631,92.379,92.316,9.7696]
[1770244815110,8.24655438,92.38,92.316,9.7696]
[1770244815918,8.24655438,92.38,92.304,4.01369574]
[1770244815919,9.764,92.37,92.304,4.01369574]
[1770244816218,8.24655438,92.4,92.304,4.01369574]
[1770244817117,9.7629,92.38,92.32,9.7692]
[1770244818614,9.7638,92.372,92.304,4.01369574]
[1770244818817,8.24655438,92.38,92.304,4.01369574]
[1770244819018,8.24655438,92.38,92.262,4.02365725]
[1770244819421,9.7659,92.352,92.3,9.7713]
[1770244819613,9.7659,92.352,92.282,4.02365725]
[1770244819814,8.24655438,92.38,92.282,4.02365725]
[1770244820120,8.24655438,92.38,92.237,19.556]
[1770244820121,8.24655438,92.36,92.263,4.03106658]
[1770244820419,9.7682,92.33,92.27,9.7744]
[1770244820916,9.7691,92.322,92.263,4.03106658]
[1770244821816,9.7681,92.331,92.265,4.01710672]
[1770244822417,9.7697,92.316,92.265,4.01710672]
[1770244822718,8.24655438,92.34,92.265,4.01710672]
[1770244823820,9.7714,92.3,92.248,9.7768]
[1770244824324,9.7724,92.291,92.245,4.02552891]
[1770244824624,8.24655438,92.32,92.185,4.02580612]
[1770244824917,9.7735,92.28,92.218,9.7799]
[1770244825318,9.7735,92.28,92.218,13.80570612]
[1770244825623,9.7735,92.28,92.219,4.01137345]
[1770244825824,9.7735,92.28,92.221,4.01137345]
[1770244827927,9.7745,92.271,92.221,4.01137345]
[1770244830432,8.24655438,92.3,92.221,4.01137345]
[1770244831832,9.7745,92.27,92.221,4.01137345]
[1770244832329,9.7756,92.26,92.221,4.01137345]
[1770244832530,9.7756,92.26,92.207,9.7811]
[1770244832928,8.24655438,92.28,92.2,3.99669167]
[1770244833123,3.7932034,92.259,92.13,19.5786]
[1770244833935,9.7789,92.229,92.172,9.7848]
[1770244834637,9.78,92.219,92.13,19.5786]
[1770244834832,3.7932034,92.242,92.13,19.5786]
[1770244835033,3.7932034,92.242,92.111,3.65338722]
[1770244835331,9.7807,92.212,92.151,3.65338722]
[1770244836137,9.7797,92.222,92.157,3.65338722]
[1770244836333,3.7932034,92.239,92.157,3.65338722]
[1770244837339,9.7786,92.232,92.182,9.7838]
[1770244837539,9.7786,92.232,92.175,3.65338722]
[1770244838941,9.7786,92.232,92.177,3.65338722]
[1770244839335,9.7795,92.223,92.177,3.65338722]
[1770244840739,9.7785,92.233,92.177,3.65338722]
[1770244840937,3.7932034,92.232,92.157,3.65338722]
[1770244842937,9.7805,92.214,92.159,13.43958722]
[1770244843740,3.7932034,92.213,92.159,13.43958722]
[1770244844743,3.7932034,92.213,92.164,9.7857]
[1770244845141,9.7789,92.229,92.165,3.65338722]
[1770244845335,3.7932034,92.251,92.184,3.65338722]
[1770244845953,9.7768,92.249,92.195,9.7824]
[1770244846444,9.7776,92.241,92.195,9.7824]
[1770244847041,13.5698034,92.251,92.203,9.7816]
[1770244847347,3.7932034,92.251,92.203,9.7816]
[1770244847548,8.24655438,92.28,92.203,9.7816]
[1770244847749,3.7932034,92.279,92.195,3.65338722]
[1770244849846,9.7738,92.277,92.213,3.65338722]
[1770244850647,3.7932034,92.279,92.224,9.7794]
[1770244851150,9.7737,92.278,92.224,9.7794]
[1770244852347,3.7932034,92.278,92.215,3.65338722]
[1770244852848,3.7932034,92.278,92.217,3.65338722]
[1770244854748,3.7932034,92.278,92.22,3.7690978]
[1770244855144,9.7725,92.29,92.22,3.7690978]
[1770244855349,3.60008011,92.289,92.226,9.7792]
[1770244855850,3.60008011,92.289,92.227,3.7690978]
[1770244856047,9.7729,92.285,92.23,3.7690978]
[1770244857847,9.7729,92.285,92.231,9.7786]
[1770244859543,8.24655438,92.33,92.18,8.24655438]
[1770244859544,3.81142704,92.306,92.232,3.91602285]
[1770244860350,3.81142704,92.306,92.248,3.91602285]
[1770244861751,3.81142704,92.306,92.263,9.7752]
[1770244862354,9.7692,92.321,92.27,9.7744]
[1770244862551,3.77058104,92.32,92.264,3.91602285]
[1770244863048,9.7694,92.319,92.266,9.7749]
[1770244863248,3.77058104,92.318,92.264,3.91602285]
[1770244863754,9.7697,92.316,92.265,9.775]
[1770244865954,9.7697,92.316,92.265,13.69102285]
[1770244866557,3.77058104,92.318,92.221,3.91602285]
[1770244867054,3.77058104,92.318,92.223,3.91602285]
[1770244867955,13.54008104,92.318,92.234,3.91602285]
[1770244868457,13.54008104,92.318,92.199,152.1651]
[1770244868458,3.73017587,92.218,92.147,3.91602285]
[1770244869046,9.7831,92.189,92.147,3.91602285]
[1770244869250,3.73017587,92.218,92.123,3.91602285]
[1770244869457,3.73017587,92.209,92.123,3.91602285]
[1770244869658,9.786,92.163,92.123,3.91602285]
[1770244870155,3.65509936,92.187,92.123,3.91602285]
[1770244870957,3.65509936,92.187,92.032,152.441]
[1770244870958,3.65509936,92.187,92.104,3.91602285]
[1770244871556,3.65509936,92.141,92.064,3.91602285]
[1770244871754,3.65509936,92.141,92.042,3.91602285]
[1770244872055,3.77738813,92.129,92.042,3.91602285]
[1770244872258,9.7923,92.103,92.042,3.91602285]
[1770244872757,3.77738813,92.11,92.042,3.91602285]
[1770244873158,9.7933,92.094,92.011,3.91602285]
[1770244873358,3.77738813,92.093,92.011,3.91602285]
[1770244873752,9.7951,92.077,92.011,3.91602285]
[1770244874154,13.53542352,92.077,92.011,3.91602285]
[1770244874752,3.74032352,92.071,92.011,3.91602285]
[1770244875657,152.283,92.129,92.011,3.91602285]
[1770244875658,3.74032352,92.094,92.011,3.91602285]
[1770244875858,9.7905,92.12,92.011,3.91602285]
[1770244876154,3.75430686,92.121,92.041,3.91602285]
[1770244876754,3.75430686,92.121,92.044,3.91602285]
[1770244878261,3.75430686,92.121,92.054,3.91602285]
[1770244879356,3.72334067,92.14,92.056,3.91602285]
[1770244880261,9.7889,92.135,92.056,3.91602285]
[1770244881262,13.49047175,92.135,92.057,3.91602285]
[1770244881464,3.70157175,92.134,92.057,3.91602285]
[1770244881967,3.71624753,92.131,92.057,3.91602285]
[1770244882466,3.71624753,92.115,92.038,3.91602285]
[1770244883255,3.71624753,92.111,92.038,3.91602285]
[1770244884865,3.62635688,92.106,92.038,3.91602285]
[1770244886864,3.5981464,92.103,92.038,3.91602285]
[1770244887767,3.5981464,92.103,92.04,3.74475505]
[1770244888767,3.5981464,92.103,92.042,3.74475505]
[1770244890761,9.7896,92.128,92.047,3.74475505]
[1770244891371,3.57578992,92.139,92.059,3.74475505]
[1770244891564,3.62635688,92.156,92.059,3.74475505]
[1770244892170,3.62635688,92.153,92.089,3.74475505]
[1770244893673,3.62635688,92.153,92.099,3.74475505]
[1770244894765,3.62635688,92.153,92.102,9.7923]
[1770244895164,9.7854,92.168,92.103,3.74475505]
[1770244895567,3.62635688,92.167,92.103,3.74475505]
[1770244896474,3.62635688,92.167,92.104,9.792]
[1770244897367,3.62635688,92.167,92.107,3.74475505]
[1770244897874,9.7842,92.179,92.107,3.74475505]
[1770244898273,3.5864867,92.178,92.107,3.74475505]
[1770244898773,3.5864867,92.178,92.122,9.7902]
[1770244899769,3.56827419,92.176,92.112,9.7912]
[1770244899967,3.56827419,92.176,92.107,3.74475505]
[1770244900365,3.56827419,92.159,92.089,3.74475505]
[1770244900568,3.56827419,92.159,92.041,3.74475505]
[1770244900969,3.56827419,92.126,92.054,3.74475505]
[1770244901772,9.7925,92.101,92.054,3.74475505]
[1770244903064,3.56827419,92.126,92.054,3.74475505]
[1770244904671,9.793,92.096,92.054,3.74475505]
[1770244907469,9.793,92.096,92.04,9.7989]
[1770244907676,3.62635688,92.086,92.035,3.74475505]
[1770244907877,3.62635688,92.086,92.014,3.74475505]
[1770244908173,3.62635688,92.063,92.004,9.8027]
[1770244908672,3.62635688,92.063,91.997,3.74475505]
[1770244909076,9.7981,92.048,91.997,3.74475505]
[1770244912176,9.7969,92.059,91.997,3.74475505]
[1770244912382,3.46601953,92.085,91.997,3.74475505]
[1770244912585,3.46601953,92.119,91.997,3.74475505]
[1770244913178,9.7927,92.099,92.033,3.74475505]
[1770244913384,3.46601953,92.119,92.033,3.74475505]
[1770244914784,9.791,92.115,92.05,9.7979]
[1770244915882,3.42960776,92.112,92.05,9.7979]
[1770244916983,3.42960776,92.112,92.032,3.68629742]
[1770244917285,3.42960776,92.099,92.012,3.68629742]
[1770244917485,3.42960776,92.054,91.989,3.68629742]
[1770244918186,9.7982,92.048,91.989,3.68629742]
[1770244918985,9.7982,92.048,91.99,9.8043]
[1770244919985,3.42960776,92.054,91.995,9.8036]
[1770244920482,3.42960776,92.054,91.996,3.94052593]
[1770244920682,9.7956,92.072,92.003,3.94052593]
[1770244921685,9.7956,92.072,92.008,3.94052593]
[1770244922086,3.39789954,92.078,92.008,3.94052593]
[1770244922887,3.39789954,92.078,92.028,9.8002]
[1770244923088,3.36363962,92.119,92.029,3.94052593]
[1770244923688,9.7934,92.092,92.029,3.94052593]
[1770244924491,3.36363962,92.099,92.039,3.94052593]
[1770244924688,3.56513854,92.139,92.039,3.94052593]
[1770244925393,9.7923,92.103,92.039,3.94052593]
[1770244925588,3.56513854,92.122,92.039,3.94052593]
[1770244926089,9.791,92.115,92.051,3.94052593]
[1770244926482,9.791,92.115,92.059,3.94052593]
[1770244927090,3.56513854,92.122,92.062,3.94052593]
[1770244928096,9.7934,92.093,92.043,3.94052593]
[1770244928896,9.7923,92.103,92.043,3.94052593]
[1770244929288,9.7937,92.089,92.043,3.94052593]
[1770244931991,9.7927,92.099,92.043,3.94052593]
[1770244932294,3.76540941,92.102,92.043,3.94052593]
[1770244932697,3.76540941,92.102,92.045,3.94052593]
[1770244932897,9.7917,92.108,92.045,3.94052593]
[1770244933591,9.7908,92.117,92.049,9.7979]
[1770244933796,9.7908,92.117,92.05,3.94052593]